[Event "Titled Tuesday Blitz January 17 Early 2023"]
[White "Korchmar, Vasiliy"]
[Black "Poeta, Caio Medeiros"]
[WhiteFideId "24131750"]
[BlackFideId "2142660"]
[WhiteElo "2438"]
[BlackElo "2088"]
[Result "1-0"]
[Round "08"]
[TimeControl "180+2"]
[Date "2023.01.17"]
[WhiteClock "0:00:02"]
[BlackClock "0:00:28"]

1. Nf3 {[%clk 0:03:00]}  Nf6 {[%clk 0:02:48]} 2. g3 {[%clk 0:02:59]}  b6 {[%clk 0:02:48]} 3. Bg2 {[%clk 0:02:58]}  Bb7 {[%clk 0:02:49]} 4. c4 {[%clk 0:02:58]}  c5 {[%clk 0:02:48]} 5. O-O {[%clk 0:02:57]}  d5 {[%clk 0:02:48]} 6. cxd5 {[%clk 0:02:54]}  Nxd5 {[%clk 0:02:49]} 7. d4 {[%clk 0:02:53]}  e6 {[%clk 0:02:48]} 8. Ne5 {[%clk 0:02:28]}  Nc6 {[%clk 0:02:43]} 9. Nxc6 {[%clk 0:02:23]}  Bxc6 {[%clk 0:02:43]} 10. Nc3 {[%clk 0:02:23]}  Qd7 {[%clk 0:02:34]} 11. e4 {[%clk 0:01:50]}  Nxc3 {[%clk 0:02:31]} 12. bxc3 {[%clk 0:01:51]}  cxd4 {[%clk 0:02:32]} 13. cxd4 {[%clk 0:01:51]}  Rd8 {[%clk 0:02:32]} 14. d5 {[%clk 0:01:45]}  Bb5 {[%clk 0:02:29]} 15. Re1 {[%clk 0:01:44]}  Bb4 {[%clk 0:02:28]} 16. Bd2 {[%clk 0:01:41]}  Bxd2 {[%clk 0:02:28]} 17. Qxd2 {[%clk 0:01:42]}  O-O {[%clk 0:02:27]} 18. Rad1 {[%clk 0:01:38]}  exd5 {[%clk 0:02:26]} 19. exd5 {[%clk 0:01:38]}  Qd6 {[%clk 0:02:26]} 20. h4 {[%clk 0:01:32]}  Rc8 {[%clk 0:02:26]} 21. Qg5 {[%clk 0:01:28]}  h6 {[%clk 0:02:20]} 22. Qe7 {[%clk 0:01:24]}  Rfd8 {[%clk 0:02:14]} 23. Qxa7 {[%clk 0:01:22]}  Rb8 {[%clk 0:02:10]} 24. Qe7 {[%clk 0:01:19]}  Ra8 {[%clk 0:02:04]} 25. Qe3 {[%clk 0:00:49]}  Rxa2 {[%clk 0:02:01]} 26. Rb1 {[%clk 0:00:49]}  Ra5 {[%clk 0:01:58]} 27. Rb3 {[%clk 0:00:49]}  Re8 {[%clk 0:01:33]} 28. Qd2 {[%clk 0:00:49]}  Rxe1+ {[%clk 0:01:32]} 29. Qxe1 {[%clk 0:00:50]}  Bc4 {[%clk 0:01:22]} 30. Qe8+ {[%clk 0:00:48]}  Qf8 {[%clk 0:01:16]} 31. Qxf8+ {[%clk 0:00:46]}  Kxf8 {[%clk 0:01:16]} 32. Rxb6 {[%clk 0:00:39]}  Bxd5 {[%clk 0:01:16]} 33. f3 {[%clk 0:00:34]}  g6 {[%clk 0:01:13]} 34. Rb2 {[%clk 0:00:30]}  h5 {[%clk 0:01:13]} 35. Kh2 {[%clk 0:00:30]}  Kg7 {[%clk 0:01:13]} 36. Rf2 {[%clk 0:00:29]}  Ra3 {[%clk 0:01:12]} 37. g4 {[%clk 0:00:28]}  hxg4 {[%clk 0:01:12]} 38. fxg4 {[%clk 0:00:29]}  Bxg2 {[%clk 0:01:11]} 39. Kxg2 {[%clk 0:00:30]}  Rb3 {[%clk 0:01:11]} 40. g5 {[%clk 0:00:30]}  Ra3 {[%clk 0:01:08]} 41. Rf3 {[%clk 0:00:30]}  Ra2+ {[%clk 0:01:08]} 42. Kg3 {[%clk 0:00:30]}  Ra4 {[%clk 0:01:09]} 43. Rf4 {[%clk 0:00:30]}  Ra3+ {[%clk 0:01:09]} 44. Kg4 {[%clk 0:00:30]}  Ra1 {[%clk 0:01:10]} 45. Rf3 {[%clk 0:00:29]}  Rg1+ {[%clk 0:01:10]} 46. Kf4 {[%clk 0:00:29]}  Rh1 {[%clk 0:01:10]} 47. Kg4 {[%clk 0:00:29]}  Rg1+ {[%clk 0:01:10]} 48. Rg3 {[%clk 0:00:30]}  Rf1 {[%clk 0:01:10]} 49. Kh3 {[%clk 0:00:28]}  Kf8 {[%clk 0:01:08]} 50. Rb3 {[%clk 0:00:27]}  Kg7 {[%clk 0:01:07]} 51. Rb4 {[%clk 0:00:26]}  Ra1 {[%clk 0:01:06]} 52. Kg3 {[%clk 0:00:26]}  Rg1+ {[%clk 0:01:06]} 53. Kf4 {[%clk 0:00:26]}  Ra1 {[%clk 0:01:07]} 54. Ke5 {[%clk 0:00:26]}  Rf1 {[%clk 0:01:06]} 55. Kd6 {[%clk 0:00:25]}  Re1 {[%clk 0:01:05]} 56. Rf4 {[%clk 0:00:24]}  Re2 {[%clk 0:01:04]} 57. Kd7 {[%clk 0:00:24]}  Re1 {[%clk 0:01:04]} 58. Kd8 {[%clk 0:00:24]}  Re2 {[%clk 0:01:04]} 59. Rd4 {[%clk 0:00:24]}  Re1 {[%clk 0:01:04]} 60. Kd7 {[%clk 0:00:22]}  Re3 {[%clk 0:01:04]} 61. Kd6 {[%clk 0:00:22]}  Re2 {[%clk 0:01:04]} 62. Kd5 {[%clk 0:00:23]}  Re1 {[%clk 0:01:04]} 63. Re4 {[%clk 0:00:23]}  Rd1+ {[%clk 0:01:01]} 64. Ke5 {[%clk 0:00:24]}  Rf1 {[%clk 0:01:00]} 65. Rd4 {[%clk 0:00:20]}  Rf5+ {[%clk 0:00:59]} 66. Kd6 {[%clk 0:00:20]}  Ra5 {[%clk 0:01:00]} 67. Ke7 {[%clk 0:00:19]}  Rf5 {[%clk 0:00:59]} 68. Re4 {[%clk 0:00:16]}  Ra5 {[%clk 0:00:59]} 69. Rf4 {[%clk 0:00:12]}  Rb5 {[%clk 0:00:58]} 70. Rxf7+ {[%clk 0:00:11]}  Kg8 {[%clk 0:00:54]} 71. Rf8+ {[%clk 0:00:10]}  Kg7 {[%clk 0:00:53]} 72. Rf7+ {[%clk 0:00:08]}  Kg8 {[%clk 0:00:54]} 73. Rf4 {[%clk 0:00:09]}  Kg7 {[%clk 0:00:53]} 74. Rd4 {[%clk 0:00:07]}  Re5+ {[%clk 0:00:50]} 75. Kd6 {[%clk 0:00:07]}  Re1 {[%clk 0:00:49]} 76. Kd5 {[%clk 0:00:07]}  Re2 {[%clk 0:00:49]} 77. Re4 {[%clk 0:00:07]}  Rd2+ {[%clk 0:00:49]} 78. Ke6 {[%clk 0:00:07]}  Rd8 {[%clk 0:00:48]} 79. Rb4 {[%clk 0:00:05]}  Re8+ {[%clk 0:00:46]} 80. Kd6 {[%clk 0:00:05]}  Rd8+ {[%clk 0:00:45]} 81. Ke7 {[%clk 0:00:06]}  Rd1 {[%clk 0:00:45]} 82. Rb7 {[%clk 0:00:05]}  Rd4 {[%clk 0:00:39]} 83. Ke6+ {[%clk 0:00:05]}  Kg8 {[%clk 0:00:37]} 84. Kf6 {[%clk 0:00:04]}  Rxh4 {[%clk 0:00:36]} 85. Kxg6 {[%clk 0:00:03]}  Kf8 {[%clk 0:00:36]} 86. Rb8+ {[%clk 0:00:03]}  Ke7 {[%clk 0:00:36]} 87. Kg7 {[%clk 0:00:03]}  Rh1 {[%clk 0:00:36]} 88. g6 {[%clk 0:00:04]}  Rg1 {[%clk 0:00:32]} 89. Rb6 {[%clk 0:00:04]}  Rh1 {[%clk 0:00:31]} 90. Kg8 {[%clk 0:00:03]}  Rh2 {[%clk 0:00:30]} 91. g7 {[%clk 0:00:03]}  Rh1 {[%clk 0:00:31]} 92. Rb4 {[%clk 0:00:03]}  Rh2 {[%clk 0:00:30]} 93. Re4+ {[%clk 0:00:04]}  Kf6 {[%clk 0:00:28]} 94. Kf8 {[%clk 0:00:04]}  Kf5 {[%clk 0:00:28]} 95. Re1 {[%clk 0:00:02]} 1-0


[Site "https://www.chess.com"]

[Event "Titled Tuesday Blitz January 17 Early 2023"]
[White "Kochetov, Andrey"]
[Black "Tymrakiewicz, Rafal"]
[WhiteFideId "24130532"]
[BlackFideId "1108832"]
[WhiteElo "2165"]
[BlackElo "2144"]
[Result "1-0"]
[Round "08"]
[TimeControl "180+2"]
[Date "2023.01.17"]
[WhiteClock "0:00:03"]
[BlackClock "0:00:11"]

1. e4 {[%clk 0:03:00]}  Nf6 {[%clk 0:02:58]} 2. e5 {[%clk 0:03:01]}  Nd5 {[%clk 0:02:58]} 3. d4 {[%clk 0:03:01]}  d6 {[%clk 0:02:58]} 4. c4 {[%clk 0:03:01]}  Nb6 {[%clk 0:02:58]} 5. exd6 {[%clk 0:03:01]}  cxd6 {[%clk 0:02:59]} 6. Nf3 {[%clk 0:03:01]}  g6 {[%clk 0:03:00]} 7. Nc3 {[%clk 0:03:01]}  Bg7 {[%clk 0:03:00]} 8. Be3 {[%clk 0:03:01]}  Bg4 {[%clk 0:02:58]} 9. Be2 {[%clk 0:03:02]}  O-O {[%clk 0:02:55]} 10. O-O {[%clk 0:03:00]}  Nc6 {[%clk 0:02:54]} 11. b3 {[%clk 0:03:00]}  d5 {[%clk 0:02:52]} 12. c5 {[%clk 0:02:42]}  Nc8 {[%clk 0:02:52]} 13. b4 {[%clk 0:02:41]}  a6 {[%clk 0:02:47]} 14. Rb1 {[%clk 0:02:30]}  e6 {[%clk 0:02:47]} 15. b5 {[%clk 0:02:25]}  axb5 {[%clk 0:02:46]} 16. Rxb5 {[%clk 0:02:25]}  Ra7 {[%clk 0:02:17]} 17. h3 {[%clk 0:02:11]}  Bxf3 {[%clk 0:02:17]} 18. Bxf3 {[%clk 0:02:12]}  N8e7 {[%clk 0:02:17]} 19. Rb2 {[%clk 0:01:42]}  Nf5 {[%clk 0:02:14]} 20. Nb5 {[%clk 0:01:42]}  Ra8 {[%clk 0:01:53]} 21. g4 {[%clk 0:01:08]}  Nxe3 {[%clk 0:01:50]} 22. fxe3 {[%clk 0:01:08]}  Qg5 {[%clk 0:01:50]} 23. Re2 {[%clk 0:00:47]}  Ra5 {[%clk 0:01:12]} 24. Nd6 {[%clk 0:00:44]}  Rfa8 {[%clk 0:01:11]} 25. Qb1 {[%clk 0:00:32]}  R8a7 {[%clk 0:00:53]} 26. Nc8 {[%clk 0:00:04]}  h5 {[%clk 0:00:31]} 27. Nxa7 {[%clk 0:00:04]}  Rxa7 {[%clk 0:00:32]} 28. Kh1 {[%clk 0:00:03]}  hxg4 {[%clk 0:00:30]} 29. Bxg4 {[%clk 0:00:04]}  f5 {[%clk 0:00:30]} 30. Bf3 {[%clk 0:00:04]}  Kf7 {[%clk 0:00:19]} 31. Rg2 {[%clk 0:00:04]}  Qh6 {[%clk 0:00:18]} 32. Kh2 {[%clk 0:00:04]}  Bf6 {[%clk 0:00:16]} 33. Rfg1 {[%clk 0:00:04]}  g5 {[%clk 0:00:16]} 34. Qd1 {[%clk 0:00:05]}  g4 {[%clk 0:00:16]} 35. Bxg4 {[%clk 0:00:03]}  fxg4 {[%clk 0:00:16]} 36. Qxg4 {[%clk 0:00:04]}  Ne7 {[%clk 0:00:14]} 37. Qf3 {[%clk 0:00:03]}  Ra3 {[%clk 0:00:12]} 38. Re2 {[%clk 0:00:03]}  Rd3 {[%clk 0:00:12]} 39. Rf1 {[%clk 0:00:03]}  Nf5 {[%clk 0:00:11]} 40. Qg4 {[%clk 0:00:02]}  Bd8 {[%clk 0:00:11]} 41. Rxf5+ {[%clk 0:00:02]}  exf5 {[%clk 0:00:11]} 42. Qxf5+ {[%clk 0:00:02]}  Ke8 {[%clk 0:00:11]} 43. Qxd3 {[%clk 0:00:03]}  Bc7+ {[%clk 0:00:11]} 44. Kg2 {[%clk 0:00:03]}  Qg6+ {[%clk 0:00:11]} 45. Qxg6+ {[%clk 0:00:03]}  Ke7 {[%clk 0:00:11]} 46. Rf2 {[%clk 0:00:03]} 1-0


[Site "https://www.chess.com"]

[Event "Titled Tuesday Blitz January 17 Early 2023"]
[White "Iskusnyh, Sergei"]
[Black "Sreyas Payyappat"]
[WhiteFideId "4120027"]
[BlackFideId "46674969"]
[WhiteElo "2440"]
[BlackElo "2076"]
[Result "0-1"]
[Round "08"]
[TimeControl "180+2"]
[Date "2023.01.17"]
[WhiteClock "0:00:01"]
[BlackClock "0:00:10"]

1. d4 {[%clk 0:03:00]}  Nf6 {[%clk 0:02:58]} 2. c4 {[%clk 0:03:00]}  c5 {[%clk 0:02:57]} 3. d5 {[%clk 0:02:59]}  e6 {[%clk 0:02:54]} 4. Nc3 {[%clk 0:02:58]}  exd5 {[%clk 0:02:55]} 5. cxd5 {[%clk 0:02:59]}  d6 {[%clk 0:02:54]} 6. Nf3 {[%clk 0:02:59]}  g6 {[%clk 0:02:52]} 7. Nd2 {[%clk 0:02:59]}  Bg7 {[%clk 0:02:53]} 8. e4 {[%clk 0:03:00]}  O-O {[%clk 0:02:51]} 9. Be2 {[%clk 0:03:00]}  Re8 {[%clk 0:02:47]} 10. O-O {[%clk 0:03:00]}  a6 {[%clk 0:02:46]} 11. a4 {[%clk 0:02:59]}  Nbd7 {[%clk 0:02:45]} 12. h3 {[%clk 0:02:55]}  Rb8 {[%clk 0:02:40]} 13. a5 {[%clk 0:02:50]}  Qe7 {[%clk 0:02:24]} 14. Re1 {[%clk 0:02:37]}  b5 {[%clk 0:02:16]} 15. axb6 {[%clk 0:02:37]}  Nxb6 {[%clk 0:02:10]} 16. Ra3 {[%clk 0:02:19]}  Ra8 {[%clk 0:02:00]} 17. Bf1 {[%clk 0:02:15]}  Bb7 {[%clk 0:01:58]} 18. Nf3 {[%clk 0:01:49]}  Qc7 {[%clk 0:01:50]} 19. Bf4 {[%clk 0:01:49]}  Nfd7 {[%clk 0:01:45]} 20. Qc1 {[%clk 0:01:23]}  Ne5 {[%clk 0:01:33]} 21. Nxe5 {[%clk 0:01:22]}  Bxe5 {[%clk 0:01:34]} 22. Bxe5 {[%clk 0:01:18]}  Rxe5 {[%clk 0:01:35]} 23. f4 {[%clk 0:01:01]}  Re7 {[%clk 0:01:33]} 24. f5 {[%clk 0:01:01]}  Nd7 {[%clk 0:01:21]} 25. Qh6 {[%clk 0:00:41]}  Rae8 {[%clk 0:01:16]} 26. Bxa6 {[%clk 0:00:40]}  Bxa6 {[%clk 0:01:13]} 27. Rxa6 {[%clk 0:00:39]}  c4 {[%clk 0:01:13]} 28. Rc6 {[%clk 0:00:37]}  Qb8 {[%clk 0:01:11]} 29. Rf1 {[%clk 0:00:32]}  Qxb2 {[%clk 0:01:04]} 30. Rxc4 {[%clk 0:00:25]}  Qb6+ {[%clk 0:00:18]} 31. Kh1 {[%clk 0:00:24]}  gxf5 {[%clk 0:00:18]} 32. exf5 {[%clk 0:00:23]}  f6 {[%clk 0:00:18]} 33. Rg4+ {[%clk 0:00:22]}  Kh8 {[%clk 0:00:19]} 34. Ne4 {[%clk 0:00:21]}  Rf7 {[%clk 0:00:15]} 35. Rf3 {[%clk 0:00:17]}  Qb1+ {[%clk 0:00:15]} 36. Kh2 {[%clk 0:00:16]}  Rxe4 {[%clk 0:00:15]} 37. Rg6 {[%clk 0:00:12]}  Re8 {[%clk 0:00:11]} 38. Rfg3 {[%clk 0:00:11]}  Qxf5 {[%clk 0:00:10]} 39. Rg7 {[%clk 0:00:11]}  Ref8 {[%clk 0:00:10]} 40. Rxf7 {[%clk 0:00:02]}  Rxf7 {[%clk 0:00:11]} 41. Qc1 {[%clk 0:00:03]}  Rf8 {[%clk 0:00:11]} 42. Qc7 {[%clk 0:00:03]}  Rg8 {[%clk 0:00:09]} 43. Rxg8+ {[%clk 0:00:01]}  Kxg8 {[%clk 0:00:10]} 44. Qd8+ {[%clk 0:00:01]}  Kf7 {[%clk 0:00:10]} 0-1


[Site "https://www.chess.com"]

[Event "Titled Tuesday Blitz January 17 Early 2023"]
[White "Jaskolka, Tomasz"]
[Black "Hamley, Ryan"]
[WhiteFideId "1170791"]
[BlackFideId "30959497"]
[WhiteElo "2238"]
[BlackElo "2092"]
[Result "0-1"]
[Round "08"]
[TimeControl "180+2"]
[Date "2023.01.17"]
[WhiteClock "0:00:01"]
[BlackClock "0:00:15"]

1. d4 {[%clk 0:03:00]}  Nf6 {[%clk 0:02:58]} 2. c4 {[%clk 0:03:00]}  e6 {[%clk 0:02:57]} 3. g3 {[%clk 0:02:59]}  d5 {[%clk 0:02:54]} 4. Bg2 {[%clk 0:03:00]}  Bb4+ {[%clk 0:02:54]} 5. Nd2 {[%clk 0:02:59]}  O-O {[%clk 0:02:52]} 6. Nf3 {[%clk 0:02:59]}  dxc4 {[%clk 0:02:53]} 7. O-O {[%clk 0:02:58]}  b5 {[%clk 0:02:49]} 8. a4 {[%clk 0:02:27]}  c3 {[%clk 0:02:21]} 9. Nb3 {[%clk 0:02:15]}  Bb7 {[%clk 0:02:07]} 10. axb5 {[%clk 0:02:11]}  Nbd7 {[%clk 0:02:07]} 11. Ra4 {[%clk 0:01:46]}  cxb2 {[%clk 0:02:04]} 12. Bxb2 {[%clk 0:01:46]}  Bd6 {[%clk 0:02:03]} 13. Ne5 {[%clk 0:01:40]}  Bxg2 {[%clk 0:01:57]} 14. Kxg2 {[%clk 0:01:41]}  Qc8 {[%clk 0:01:48]} 15. Qd3 {[%clk 0:01:36]}  Qb7+ {[%clk 0:01:47]} 16. f3 {[%clk 0:01:28]}  Nd5 {[%clk 0:01:40]} 17. Nxd7 {[%clk 0:01:17]}  Rfd8 {[%clk 0:01:36]} 18. Ndc5 {[%clk 0:01:04]}  Qc8 {[%clk 0:01:36]} 19. e4 {[%clk 0:01:02]}  Nb6 {[%clk 0:01:37]} 20. Raa1 {[%clk 0:00:59]}  e5 {[%clk 0:01:35]} 21. Rfd1 {[%clk 0:00:55]}  exd4 {[%clk 0:01:35]} 22. Qxd4 {[%clk 0:00:55]}  f6 {[%clk 0:01:35]} 23. Qc3 {[%clk 0:00:48]}  h5 {[%clk 0:01:30]} 24. h4 {[%clk 0:00:44]}  Be5 {[%clk 0:01:09]} 25. Qc2 {[%clk 0:00:44]}  Bd6 {[%clk 0:01:08]} 26. Rd2 {[%clk 0:00:39]}  Rf8 {[%clk 0:01:05]} 27. Rad1 {[%clk 0:00:38]}  Qe8 {[%clk 0:01:06]} 28. Nd4 {[%clk 0:00:30]}  Qe5 {[%clk 0:01:03]} 29. Nde6 {[%clk 0:00:16]}  Qxg3+ {[%clk 0:01:02]} 30. Kf1 {[%clk 0:00:16]}  Qxf3+ {[%clk 0:00:56]} 31. Rf2 {[%clk 0:00:16]}  Qh3+ {[%clk 0:00:56]} 32. Rg2 {[%clk 0:00:15]}  Rf7 {[%clk 0:00:52]} 33. Qf2 {[%clk 0:00:15]}  Bxc5 {[%clk 0:00:44]} 34. Nxc5 {[%clk 0:00:11]}  Re8 {[%clk 0:00:44]} 35. Rd3 {[%clk 0:00:11]}  Qc8 {[%clk 0:00:32]} 36. Rdg3 {[%clk 0:00:11]}  Qd8 {[%clk 0:00:25]} 37. Qf3 {[%clk 0:00:08]}  Re5 {[%clk 0:00:23]} 38. Nd3 {[%clk 0:00:07]}  Rxb5 {[%clk 0:00:21]} 39. Kg1 {[%clk 0:00:07]}  Nc4 {[%clk 0:00:19]} 40. Bc3 {[%clk 0:00:07]}  Rb3 {[%clk 0:00:18]} 41. Nf4 {[%clk 0:00:07]}  Ne5 {[%clk 0:00:16]} 42. Qe3 {[%clk 0:00:04]}  Qd1+ {[%clk 0:00:16]} 43. Kh2 {[%clk 0:00:04]}  Ng4+ {[%clk 0:00:16]} 44. Rxg4 {[%clk 0:00:05]}  hxg4 {[%clk 0:00:17]} 45. Qc5 {[%clk 0:00:04]}  Qf3 {[%clk 0:00:15]} 46. Nh5 {[%clk 0:00:02]}  Qh3+ {[%clk 0:00:15]} 47. Kg1 {[%clk 0:00:03]}  Rb1+ {[%clk 0:00:15]} 48. Kf2 {[%clk 0:00:01]}  Qf3# {[%clk 0:00:15]} 0-1


[Site "https://www.chess.com"]

[Event "Titled Tuesday Blitz January 17 Early 2023"]
[White "Odegov, Artem"]
[Black "Garv Gaur"]
[WhiteFideId "34183644"]
[BlackFideId "45030839"]
[WhiteElo "2261"]
[BlackElo "2006"]
[Result "1-0"]
[Round "08"]
[TimeControl "180+2"]
[Date "2023.01.17"]
[WhiteClock "0:00:03"]
[BlackClock "0:00:01"]

1. d4 {[%clk 0:03:00]}  Nf6 {[%clk 0:02:58]} 2. c4 {[%clk 0:02:58]}  e6 {[%clk 0:02:55]} 3. Nf3 {[%clk 0:02:58]}  d5 {[%clk 0:02:53]} 4. Nc3 {[%clk 0:02:58]}  Be7 {[%clk 0:02:53]} 5. Bg5 {[%clk 0:02:57]}  O-O {[%clk 0:02:53]} 6. e3 {[%clk 0:02:57]}  h6 {[%clk 0:02:52]} 7. Bxf6 {[%clk 0:02:55]}  Bxf6 {[%clk 0:02:52]} 8. Qc2 {[%clk 0:02:56]}  c5 {[%clk 0:02:43]} 9. O-O-O {[%clk 0:02:55]}  cxd4 {[%clk 0:02:40]} 10. Nxd4 {[%clk 0:02:56]}  Nc6 {[%clk 0:02:37]} 11. h4 {[%clk 0:02:29]}  Qb6 {[%clk 0:01:53]} 12. Na4 {[%clk 0:01:51]}  Qa5 {[%clk 0:01:48]} 13. c5 {[%clk 0:01:37]}  Bd7 {[%clk 0:01:45]} 14. Nc3 {[%clk 0:00:47]}  Qxc5 {[%clk 0:01:42]} 15. Nb3 {[%clk 0:00:43]}  Qb6 {[%clk 0:01:41]} 16. g4 {[%clk 0:00:37]}  Nb4 {[%clk 0:01:41]} 17. Qd2 {[%clk 0:00:37]}  Rfc8 {[%clk 0:01:39]} 18. Kb1 {[%clk 0:00:36]}  a5 {[%clk 0:00:42]} 19. Nd4 {[%clk 0:00:31]}  Nc6 {[%clk 0:00:27]} 20. g5 {[%clk 0:00:26]}  hxg5 {[%clk 0:00:24]} 21. hxg5 {[%clk 0:00:27]}  Bxg5 {[%clk 0:00:24]} 22. Ndb5 {[%clk 0:00:21]}  Nb4 {[%clk 0:00:20]} 23. Bd3 {[%clk 0:00:05]}  Bxb5 {[%clk 0:00:15]} 24. Nxb5 {[%clk 0:00:02]}  Bh6 {[%clk 0:00:10]} 25. Nd4 {[%clk 0:00:02]}  Kf8 {[%clk 0:00:10]} 26. Rdg1 {[%clk 0:00:02]}  Nxd3 {[%clk 0:00:08]} 27. Qxd3 {[%clk 0:00:02]}  a4 {[%clk 0:00:08]} 28. Rh5 {[%clk 0:00:01]}  a3 {[%clk 0:00:09]} 29. b3 {[%clk 0:00:02]}  Qc5 {[%clk 0:00:07]} 30. Rhh1 {[%clk 0:00:02]}  Qc3 {[%clk 0:00:07]} 31. Qxc3 {[%clk 0:00:02]}  Rxc3 {[%clk 0:00:08]} 32. Ne2 {[%clk 0:00:02]}  Rd3 {[%clk 0:00:08]} 33. Nc1 {[%clk 0:00:02]}  Rd2 {[%clk 0:00:08]} 34. f4 {[%clk 0:00:02]}  Rb2+ {[%clk 0:00:08]} 35. Ka1 {[%clk 0:00:02]}  Rc8 {[%clk 0:00:09]} 36. Nd3 {[%clk 0:00:03]}  Rd2 {[%clk 0:00:08]} 37. Nb4 {[%clk 0:00:04]}  g6 {[%clk 0:00:07]} 38. Rxh6 {[%clk 0:00:03]}  Kg7 {[%clk 0:00:07]} 39. Rhh1 {[%clk 0:00:03]}  Rc3 {[%clk 0:00:06]} 40. Rd1 {[%clk 0:00:04]}  Re2 {[%clk 0:00:06]} 41. Nd3 {[%clk 0:00:03]}  Rxe3 {[%clk 0:00:06]} 42. Ne5 {[%clk 0:00:03]}  Re2 {[%clk 0:00:06]} 43. Nd3 {[%clk 0:00:02]}  Rcc2 {[%clk 0:00:06]} 44. Nb4 {[%clk 0:00:02]}  Rb2 {[%clk 0:00:06]} 45. Rhe1 {[%clk 0:00:03]}  Rf2 {[%clk 0:00:06]} 46. Rb1 {[%clk 0:00:03]}  Rbd2 {[%clk 0:00:04]} 47. Red1 {[%clk 0:00:03]}  Rde2 {[%clk 0:00:04]} 48. Re1 {[%clk 0:00:04]}  Rxe1 {[%clk 0:00:05]} 49. Rxe1 {[%clk 0:00:04]}  Rxf4 {[%clk 0:00:06]} 50. Nc2 {[%clk 0:00:05]}  Rf2 {[%clk 0:00:06]} 51. Nxa3 {[%clk 0:00:05]}  d4 {[%clk 0:00:05]} 52. Nb5 {[%clk 0:00:05]}  Kf6 {[%clk 0:00:04]} 53. Nxd4 {[%clk 0:00:05]}  g5 {[%clk 0:00:04]} 54. a4 {[%clk 0:00:05]}  g4 {[%clk 0:00:04]} 55. b4 {[%clk 0:00:05]}  g3 {[%clk 0:00:05]} 56. Rg1 {[%clk 0:00:04]}  g2 {[%clk 0:00:05]} 57. Nf3 {[%clk 0:00:03]}  Rf1+ {[%clk 0:00:04]} 58. Kb2 {[%clk 0:00:04]}  Rf2+ {[%clk 0:00:01]} 59. Kc1 {[%clk 0:00:03]} 1-0


[Site "https://www.chess.com"]

[Event "Titled Tuesday Blitz January 17 Early 2023"]
[White "Todorovic, Bojan"]
[Black "Lymar, Vladislav"]
[WhiteFideId "917087"]
[BlackFideId "14162180"]
[WhiteElo "2195"]
[BlackElo "2119"]
[Result "0-1"]
[Round "08"]
[TimeControl "180+2"]
[Date "2023.01.17"]
[WhiteClock "0:00:01"]
[BlackClock "0:00:20"]

1. d4 {[%clk 0:02:58]}  d5 {[%clk 0:02:22]} 2. c4 {[%clk 0:02:57]}  e6 {[%clk 0:02:20]} 3. Nc3 {[%clk 0:02:56]}  c5 {[%clk 0:01:30]} 4. cxd5 {[%clk 0:02:52]}  exd5 {[%clk 0:01:31]} 5. Nf3 {[%clk 0:02:52]}  Nc6 {[%clk 0:01:31]} 6. g3 {[%clk 0:02:51]}  Nf6 {[%clk 0:01:30]} 7. Bg2 {[%clk 0:02:51]}  Be7 {[%clk 0:01:30]} 8. O-O {[%clk 0:02:51]}  O-O {[%clk 0:01:30]} 9. dxc5 {[%clk 0:02:51]}  Bxc5 {[%clk 0:01:30]} 10. Na4 {[%clk 0:02:51]}  Be7 {[%clk 0:01:30]} 11. b3 {[%clk 0:02:51]}  Ne4 {[%clk 0:01:29]} 12. Bb2 {[%clk 0:02:51]}  Bf6 {[%clk 0:01:29]} 13. Nd4 {[%clk 0:02:45]}  Re8 {[%clk 0:01:25]} 14. Rc1 {[%clk 0:02:41]}  Bd7 {[%clk 0:01:19]} 15. Nc5 {[%clk 0:02:35]}  Nxc5 {[%clk 0:01:17]} 16. Rxc5 {[%clk 0:02:34]}  Qe7 {[%clk 0:00:54]} 17. Rxd5 {[%clk 0:02:24]}  Nb4 {[%clk 0:00:53]} 18. Ra5 {[%clk 0:01:57]}  b6 {[%clk 0:00:47]} 19. Nf5 {[%clk 0:01:28]}  Bxf5 {[%clk 0:00:45]} 20. Rxf5 {[%clk 0:01:27]}  Bxb2 {[%clk 0:00:45]} 21. Bxa8 {[%clk 0:01:25]}  Rxa8 {[%clk 0:00:42]} 22. Qd2 {[%clk 0:01:24]}  Bf6 {[%clk 0:00:36]} 23. e4 {[%clk 0:01:14]}  Nc6 {[%clk 0:00:36]} 24. e5 {[%clk 0:01:08]}  Nxe5 {[%clk 0:00:34]} 25. Re1 {[%clk 0:01:01]}  Qe6 {[%clk 0:00:30]} 26. g4 {[%clk 0:00:29]}  g6 {[%clk 0:00:30]} 27. Rxf6 {[%clk 0:00:10]}  Qxf6 {[%clk 0:00:29]} 28. Qd5 {[%clk 0:00:06]}  Re8 {[%clk 0:00:27]} 29. Kg2 {[%clk 0:00:04]}  Qf4 {[%clk 0:00:27]} 30. Re4 {[%clk 0:00:01]}  Qf3+ {[%clk 0:00:27]} 31. Kg1 {[%clk 0:00:01]}  Rc8 {[%clk 0:00:20]} 0-1


[Site "https://www.chess.com"]

[Event "Titled Tuesday Blitz January 17 Early 2023"]
[White "Makhnev, Denis"]
[Black "Mestnikov, Aisen"]
[WhiteFideId "13707647"]
[BlackFideId "34130117"]
[WhiteElo "2483"]
[BlackElo "2078"]
[Result "1-0"]
[Round "08"]
[TimeControl "180+2"]
[Date "2023.01.17"]
[WhiteClock "0:01:42"]
[BlackClock "0:01:37"]

1. Nf3 {[%clk 0:03:00]}  Nf6 {[%clk 0:02:56]} 2. c4 {[%clk 0:03:00]}  c5 {[%clk 0:02:56]} 3. Nc3 {[%clk 0:02:59]}  e6 {[%clk 0:02:55]} 4. g3 {[%clk 0:02:58]}  d5 {[%clk 0:02:55]} 5. cxd5 {[%clk 0:02:58]}  exd5 {[%clk 0:02:56]} 6. d4 {[%clk 0:02:58]}  Nc6 {[%clk 0:02:56]} 7. Bg2 {[%clk 0:02:58]}  Bg4 {[%clk 0:02:54]} 8. Ne5 {[%clk 0:02:37]}  cxd4 {[%clk 0:02:50]} 9. Nxg4 {[%clk 0:02:19]}  Nxg4 {[%clk 0:02:26]} 10. Nxd5 {[%clk 0:02:19]}  Nf6 {[%clk 0:02:07]} 11. Bg5 {[%clk 0:02:04]}  Qa5+ {[%clk 0:01:55]} 12. Bd2 {[%clk 0:02:00]}  Qd8 {[%clk 0:01:51]} 13. Qb3 {[%clk 0:01:50]}  Nxd5 {[%clk 0:01:43]} 14. Bxd5 {[%clk 0:01:48]}  Qf6 {[%clk 0:01:37]} 15. Qxb7 {[%clk 0:01:42]} 1-0


[Site "https://www.chess.com"]

[Event "Titled Tuesday Blitz January 17 Early 2023"]
[White "Wagh Suyog"]
[Black "Baches Garcia, Guillermo"]
[WhiteFideId "25071688"]
[BlackFideId "2209764"]
[WhiteElo "2313"]
[BlackElo "2327"]
[Result "1-0"]
[Round "08"]
[TimeControl "180+2"]
[Date "2023.01.17"]
[WhiteClock "0:01:44"]
[BlackClock "0:00:49"]

1. e4 {[%clk 0:02:48]}  c5 {[%clk 0:02:59]} 2. Nf3 {[%clk 0:02:47]}  d6 {[%clk 0:03:00]} 3. d4 {[%clk 0:02:47]}  cxd4 {[%clk 0:03:01]} 4. Nxd4 {[%clk 0:02:48]}  Nf6 {[%clk 0:03:01]} 5. Nc3 {[%clk 0:02:48]}  Nc6 {[%clk 0:03:02]} 6. Bg5 {[%clk 0:02:44]}  e6 {[%clk 0:03:02]} 7. Qd3 {[%clk 0:02:42]}  Be7 {[%clk 0:02:58]} 8. Nxc6 {[%clk 0:02:40]}  bxc6 {[%clk 0:02:57]} 9. Qg3 {[%clk 0:02:40]}  O-O {[%clk 0:02:47]} 10. O-O-O {[%clk 0:02:40]}  Nh5 {[%clk 0:02:24]} 11. Bxe7 {[%clk 0:02:39]}  Nxg3 {[%clk 0:02:24]} 12. Bxd8 {[%clk 0:02:38]}  Nxh1 {[%clk 0:02:24]} 13. Be7 {[%clk 0:02:29]}  Re8 {[%clk 0:01:54]} 14. Bh4 {[%clk 0:02:29]}  g5 {[%clk 0:01:48]} 15. Bxg5 {[%clk 0:02:29]}  Nxf2 {[%clk 0:01:48]} 16. Rxd6 {[%clk 0:02:29]}  Ng4 {[%clk 0:01:39]} 17. Be2 {[%clk 0:02:19]}  Ne5 {[%clk 0:01:26]} 18. Bf6 {[%clk 0:02:19]}  Nd7 {[%clk 0:01:26]} 19. Bh4 {[%clk 0:02:15]}  Nb6 {[%clk 0:01:18]} 20. e5 {[%clk 0:02:14]}  Nd5 {[%clk 0:01:09]} 21. Ne4 {[%clk 0:02:13]}  Nf4 {[%clk 0:00:59]} 22. Nf6+ {[%clk 0:02:03]}  Kf8 {[%clk 0:00:57]} 23. Bf3 {[%clk 0:01:50]}  Ba6 {[%clk 0:00:54]} 24. Bg5 {[%clk 0:01:44]}  Nd5 {[%clk 0:00:49]} 25. Bh6+ {[%clk 0:01:44]} 1-0


[Site "https://www.chess.com"]